bitfinex-derivatives/quotes_ETHF0:USTF0_20251229
["timestamp","ask_amount","ask_price","bid_price","bid_amount"]
[1766979722232,2.82190367,3037.4,3033.8,0.16498]
[1766979722435,0.16484,3036.4,3033.8,0.16498]
[1766979722734,0.16484,3036.4,3033.9,4.26935855]
[1766979723036,0.00494258,3035.5,3033.9,4.26935855]
[1766979724231,0.16983258,3035.5,3033.6,0.00494258]
[1766979724442,0.16491,3035.1,3033.6,0.00494258]
[1766979725136,0.16491,3035.0,3033.6,0.00494258]
[1766979725337,0.16492,3034.8,3033.6,0.00494258]
[1766979726133,2.82190367,3035.3,3032.0,0.00284402]
[1766979726532,0.16495,3034.3,3032.1,4.32164306]
[1766979727235,0.00494258,3033.5,3032.9,0.00494258]
[1766979727436,0.00838565,3033.5,3032.9,0.00494258]
[1766979728737,0.16497,3034.0,3032.9,0.00494258]
[1766979728936,0.16494,3034.6,3032.9,0.00494258]
[1766979729640,0.16494,3034.5,3032.9,0.00494258]
[1766979729936,0.00494258,3034.0,3032.9,0.00494258]
[1766979731028,0.00494258,3034.0,3033.0,4.35827819]
[1766979731237,0.00494258,3034.0,3032.9,0.00494258]
[1766979733938,4.258e-05,3034.0,3033.0,4.29111488]
[1766979734134,4.258e-05,3034.0,3033.1,3.79]
[1766979734441,4.258e-05,3034.0,3032.0,0.00284402]
[1766979734643,0.16497,3033.9,3032.0,0.00284402]
[1766979734844,4.258e-05,3034.0,3032.0,0.00284402]
[1766979735048,4.258e-05,3034.0,3032.1,4.20094767]
[1766979735244,0.16498,3033.7,3032.0,0.00284402]
[1766979735446,0.16498,3033.7,3032.5,0.00494258]
[1766979735640,4.258e-05,3034.0,3032.5,0.00494258]
[1766979736743,0.16499,3033.5,3032.0,0.00284402]
[1766979737752,0.16499,3033.5,3032.4,0.00494258]
[1766979738454,40.96501258,3034.0,3032.4,0.00494258]
[1766979738651,0.16501258,3034.0,3032.4,0.00494258]
[1766979739054,0.16501258,3034.0,3032.0,0.00284402]
[1766979739055,1.0,3033.0,3032.0,0.00284402]
[1766979739556,0.3297,3032.9,3032.0,0.00284402]
[1766979740054,0.3297,3032.9,3032.1,0.00494258]
[1766979740758,0.3297,3032.9,3032.0,0.00284402]
[1766979741159,0.49473,3032.9,3030.6,0.28125616]
[1766979741346,0.3297,3032.9,3030.6,0.11610616]
[1766979741751,0.00494258,3032.1,3031.4,0.00494258]
[1766979742159,0.00789694,3032.1,3030.6,0.11610616]
[1766979743147,0.00789694,3032.1,3030.6,0.11864003]
[1766979743946,0.00789694,3032.1,3030.6,0.00253387]
[1766979746048,0.3297,3032.9,3030.6,0.00253387]
[1766979746049,0.3297,3032.9,3030.9,0.16514]
[1766979746257,0.16504,3032.7,3030.7,4.20559191]
[1766979747160,0.16504,3032.7,3031.4,0.00494258]
[1766979747161,0.00494258,3032.0,3031.4,0.00494258]
[1766979747756,0.3297,3032.9,3031.5,6.59513298]
[1766979747956,0.3297,3032.9,3031.6,0.1651]
[1766979748453,0.3297,3032.9,3031.7,4.36874269]
[1766979748652,0.00494258,3032.6,3031.7,4.36874269]
[1766979748854,0.33358834,3032.9,3031.7,4.36874269]
[1766979749962,0.00494258,3032.6,3031.7,4.36874269]
[1766979750149,0.00494258,3032.6,3031.4,0.00494258]
[1766979750558,0.00494258,3032.6,3031.7,4.34477291]
[1766979750754,0.00494258,3032.6,3031.4,5.19994258]
[1766979751157,0.33358834,3032.9,3031.4,5.19994258]
[1766979751462,0.33358834,3032.9,3031.5,4.24643398]
[1766979751858,0.33358834,3032.9,3031.4,0.00494258]
[1766979752063,0.00494258,3032.5,3031.6,4.2669582]
[1766979752262,0.33358834,3032.9,3031.6,4.2669582]
[1766979752456,0.33358834,3032.9,3031.4,0.00494258]
[1766979752650,0.33358834,3032.9,3031.7,4.2669582]
[1766979752853,0.33358834,3032.9,3031.4,0.00494258]
[1766979753255,0.00494258,3032.5,3031.4,0.00494258]
[1766979754358,0.16999258,3032.5,3031.4,0.00494258]
[1766979754559,0.00494258,3032.5,3031.4,0.00494258]
[1766979754759,0.00494258,3032.5,3031.5,4.27666285]
[1766979755064,0.16495,3034.3,3032.0,0.16507]
[1766979755458,0.16495,3034.3,3032.1,4.27666285]
[1766979755862,0.16495,3034.3,3032.1,4.44173285]
[1766979756259,0.00257491,3033.5,3032.9,0.00494258]
[1766979756463,0.00257491,3033.5,3032.9,0.00816217]
[1766979756965,1.0,3033.0,3031.6,5.192]
[1766979757364,1.0,3033.0,3031.8,4.37740891]
[1766979757565,1.0,3033.0,3031.7,4.37740891]
[1766979757768,1.0,3033.0,3032.0,0.00494258]
[1766979758866,1.0,3033.0,3031.7,0.00298602]
[1766979759059,0.16504,3032.8,3031.7,0.00298602]
[1766979759762,0.16504,3032.8,3031.9,0.00494258]
[1766979760258,1.0,3033.0,3030.7,5.35815]
[1766979760259,0.16504,3032.7,3030.7,0.16515]
[1766979760665,0.16504,3032.7,3030.8,4.33146587]
[1766979760859,1.0,3033.0,3030.8,4.49660587]
[1766979761060,1.0,3033.0,3031.5,0.1651]
[1766979761255,1.0,3033.0,3031.9,0.00494258]
[1766979763663,1.0,3033.0,3032.0,4.36560252]
[1766979764567,0.00257491,3033.5,3032.0,4.36560252]
[1766979765371,0.00257491,3033.5,3031.9,0.00494258]
[1766979765570,0.16501,3033.3,3031.9,0.00494258]
[1766979766262,0.00257491,3033.5,3031.9,0.00494258]
[1766979767469,0.16502,3033.1,3031.9,0.00494258]
[1766979770372,0.16502,3033.1,3031.5,0.00295608]
[1766979770672,0.16502,3033.0,3031.5,0.00295608]
[1766979771370,0.16502,3033.0,3031.9,0.00494258]
[1766979771566,0.00257491,3033.5,3031.5,0.00295608]
[1766979771567,0.16503,3032.9,3031.5,0.00295608]
[1766979772572,0.16503,3032.9,3031.9,0.00494258]
[1766979779680,0.16757491,3033.5,3031.9,0.00494258]
[1766979779976,0.16496,3034.2,3032.1,3.05981692]
[1766979780165,0.16491,3035.0,3033.0,2.89474692]
[1766979780573,0.16491,3035.0,3033.1,4.26504918]
[1766979780772,0.16491,3035.0,3033.0,2.89474692]
[1766979780972,0.00494258,3034.0,3033.2,2.89474692]
[1766979781178,40.8,3035.5,3033.3,0.00494258]
[1766979782182,0.00494258,3034.1,3033.3,0.00494258]
[1766979783073,0.1649,3035.2,3033.3,0.00494258]
[1766979783273,0.1649,3035.2,3033.2,2.89474692]
[1766979783477,0.16492,3034.9,3032.2,0.16506]
[1766979783777,2.47265597,3037.9,3032.7,4.36878254]
[1766979784077,0.16489,3035.5,3033.3,0.165]
[1766979784268,0.1689825,3035.5,3033.3,0.165]
[1766979784473,0.1689825,3035.5,3034.1,0.00494258]
[1766979784775,0.1689825,3035.5,3034.1,0.00779014]
[1766979785477,0.00494258,3035.1,3034.1,0.00779014]
[1766979786384,0.16985258,3035.1,3033.0,4.16693607]
[1766979786579,0.0040925,3035.5,3033.2,2.47265597]
[1766979786786,0.0040925,3035.5,3033.4,3.94999711]
[1766979786984,0.0040925,3035.5,3033.0,4.16693607]
[1766979786985,0.16483,3036.6,3033.9,0.16497]
[1766979787382,40.8,3037.5,3034.0,4.34807514]
[1766979787579,0.00494258,3036.1,3035.4,0.00494258]
[1766979787880,0.00782912,3036.1,3033.3,3.67345088]
[1766979788182,0.00782912,3036.1,3033.4,5.183]
[1766979788571,0.00782912,3036.1,3033.5,4.20698205]
[1766979788976,0.00782912,3036.1,3034.5,0.00494258]
[1766979789371,0.16488,3035.7,3034.5,0.00494258]
[1766979789980,0.00782912,3036.1,3033.5,0.00256821]
[1766979790192,0.16487,3035.8,3033.5,0.00256821]
[1766979790375,0.16487,3035.8,3033.6,4.32473526]
[1766979790679,0.00782912,3036.1,3033.9,0.16497]
[1766979790870,0.00782912,3036.1,3034.7,0.00494258]
[1766979791973,0.16487,3035.8,3034.7,0.00494258]
[1766979792185,0.00782912,3036.1,3034.7,0.00494258]
[1766979792880,40.8,3036.0,3034.7,0.00494258]
[1766979793476,6.0,3035.9,3033.5,0.00256821]
[1766979793672,0.16491,3035.0,3033.5,0.00256821]
[1766979793886,0.16487,3035.9,3033.5,0.00256821]
[1766979794083,0.16487,3035.9,3033.6,4.31403712]
[1766979794485,0.16487,3035.9,3034.4,0.00329508]
[1766979794688,0.16488,3035.6,3034.4,0.00329508]
[1766979794897,0.16489,3035.5,3034.4,0.00329508]
[1766979795575,0.00494258,3035.3,3034.4,0.00329508]
[1766979797588,0.16984258,3035.3,3034.4,0.00329508]
[1766979797789,0.16984258,3035.3,3033.5,0.00256821]
[1766979798693,0.16984258,3035.3,3034.1,0.00494258]
[1766979802295,0.1649,3035.2,3034.1,0.00494258]
[1766979806296,0.00494258,3035.3,3034.1,0.00494258]
[1766979808493,0.16491,3035.1,3034.1,0.00494258]
[1766979815911,0.00494258,3035.3,3034.1,0.00494258]
[1766979821118,0.16486,3036.0,3034.2,4.34549123]
[1766979821318,0.16486,3036.0,3034.2,8.13549123]
[1766979821716,0.16486,3036.0,3034.3,3.79]
[1766979822119,0.00494258,3035.5,3034.4,4.31198511]
[1766979822623,0.00494258,3035.5,3034.4,9.47898511]
[1766979823118,0.00494258,3035.5,3034.1,0.00494258]
[1766979823415,0.00494258,3035.5,3034.2,4.22145129]
[1766979823820,0.00494258,3035.5,3034.1,0.00494258]
[1766979824421,0.16983258,3035.5,3034.1,0.00494258]
[1766979827422,0.00494258,3035.5,3034.2,4.20252485]
[1766979828024,0.00494258,3035.5,3034.3,3.79]
[1766979828208,0.00494258,3035.5,3034.3,8.964]
[1766979828613,0.00494258,3035.5,3034.4,5.174]
[1766979829415,0.00494258,3035.5,3034.3,3.79]
[1766979829614,0.00494258,3035.5,3034.5,5.177]
[1766979829810,0.00494258,3035.5,3034.3,3.79]
[1766979830016,0.00494258,3035.5,3034.4,5.178]
[1766979831927,0.00494258,3035.5,3034.5,5.182]
[1766979841230,0.00494258,3035.5,3034.6,5.204]
[1766979841523,0.16983258,3035.5,3034.4,2.87370119]
[1766979841726,0.00494258,3035.5,3034.5,5.205]
[1766979842928,0.00494258,3035.5,3034.6,2.87370119]
[1766979843922,0.16773654,3036.1,3034.6,2.87370119]
[1766979844529,0.16773654,3036.1,3034.7,2.87370119]
[1766979845026,0.00494258,3035.7,3034.6,2.87370119]
[1766979845226,0.00494258,3035.7,3034.7,2.87370119]
[1766979845934,0.00494258,3035.7,3034.9,2.87370119]
[1766979846132,0.00288654,3036.1,3035.0,5.217]
[1766979846428,0.00288654,3036.1,3035.1,2.87370119]
[1766979846733,2.39112626,3038.0,3035.1,7.20565154]
[1766979846930,0.16479,3037.3,3035.5,2.87370119]
[1766979847126,0.00494258,3036.7,3036.1,0.00494258]
[1766979847439,0.16479,3037.3,3036.1,0.00494258]
[1766979847627,0.16879425,3037.3,3036.1,0.00885579]
[1766979847932,0.1648,3037.1,3036.1,0.00885579]
[1766979848234,0.00494258,3036.9,3036.1,0.00885579]
[1766979852344,0.16481,3036.8,3035.5,5.216]
[1766979852836,0.16483,3036.6,3035.2,2.87370119]
[1766979853144,0.16483,3036.6,3035.6,0.00494258]
[1766979853734,0.00494258,3036.9,3035.6,0.00494258]
[1766979854538,0.00494258,3036.9,3035.8,2.87370119]
[1766979854845,0.00494258,3036.9,3035.9,5.215]
[1766979856931,0.00400425,3037.3,3036.0,2.17696883]
[1766979857246,0.16472,3038.5,3036.2,2.87370119]
[1766979857540,0.16472,3038.5,3036.3,4.35477441]
[1766979857735,0.16472,3038.5,3036.3,8.14477441]
[1766979858044,0.00494258,3037.7,3036.3,8.14477441]
[1766979858238,0.00494258,3037.7,3036.4,3.79]
[1766979858743,0.00494258,3037.7,3036.5,5.217]
[1766979859938,0.00330684,3038.5,3036.6,8.10060046]
[1766979860139,0.00330684,3038.5,3036.7,3.79]
[1766979860338,0.00330684,3038.5,3036.8,5.221]
[1766979860946,0.00329508,3038.0,3037.3,0.00494258]
[1766979861536,0.00329508,3038.0,3037.3,5.22694258]
[1766979861936,0.00329508,3038.0,3037.3,0.00494258]
[1766979862141,0.00329508,3038.0,3037.3,5.22694258]
[1766979863147,0.00329508,3038.0,3037.3,0.00494258]
[1766979863448,0.00329508,3038.0,3037.3,5.22694258]
[1766979865648,0.00329508,3038.0,3037.3,0.00494258]
[1766979866249,0.00329508,3038.0,3037.0,5.221]
[1766979866545,0.00329508,3038.0,3036.8,5.221]
[1766979867251,0.00329508,3038.0,3037.1,0.00494258]
[1766979868257,0.16804508,3038.0,3037.1,0.00494258]
[1766979868840,0.00330684,3038.5,3037.1,0.00494258]
[1766979869048,0.16468,3039.4,3037.2,6.36494836]
[1766979869254,0.16468,3039.4,3037.2,4.18797953]
[1766979869445,0.16468,3039.4,3037.2,6.36494836]
[1766979869841,0.00494258,3038.6,3037.2,4.18797953]
[1766979870047,0.00896571,3038.6,3037.3,5.22]
[1766979872248,0.00896571,3038.6,3037.1,0.00494258]
[1766979872452,0.00896571,3038.6,3037.2,5.219]
[1766979872647,0.00896571,3038.6,3037.1,0.00494258]
[1766979872855,0.16473,3038.5,3037.1,0.00494258]
[1766979873358,0.16473,3038.4,3037.1,0.00494258]
[1766979874549,0.00896571,3038.6,3037.1,0.00494258]
[1766979875746,0.00896571,3038.6,3037.2,4.28670184]
[1766979877854,0.00896571,3038.6,3037.3,5.216]
[1766979879151,0.00896571,3038.6,3037.4,9.51571151]
[1766979879352,0.00896571,3038.6,3037.4,5.21767156]
[1766979879552,0.00896571,3038.6,3037.4,0.00267156]
[1766979879752,0.00896571,3038.6,3037.4,5.21767156]
[1766979880653,0.00896571,3038.6,3037.4,0.00267156]
[1766979881053,0.00896571,3038.6,3037.4,5.21667156]
[1766979881256,0.00896571,3038.6,3037.4,0.00267156]
[1766979888163,0.00896571,3038.6,3037.4,5.21267156]
[1766979890586,0.00896571,3038.6,3037.4,0.00267156]
[1766979890775,0.00896571,3038.6,3037.5,5.211]
[1766979892173,0.00896571,3038.6,3037.5,5.213]
[1766979892370,0.00896571,3038.6,3037.4,5.21567156]
[1766979895275,0.00896571,3038.6,3037.4,0.00267156]
[1766979895482,0.00896571,3038.6,3037.5,5.218]
[1766979896580,0.00896571,3038.6,3037.4,1.42289974]
[1766979897078,0.00896571,3038.6,3037.5,5.219]
[1766979897875,0.00896571,3038.6,3037.4,1.42289974]
[1766979898083,0.00896571,3038.6,3037.6,5.22]
[1766979900680,10.375,3040.5,3037.7,8.12414966]
[1766979900978,0.23597376,3040.6,3037.7,4.33414966]
[1766979901173,0.16464,3040.2,3037.8,9.012]
[1766979901369,0.16464,3040.2,3037.8,13.2187166]
[1766979901571,0.1646,3040.8,3038.2,0.16474]
[1766979901778,0.16461,3040.6,3039.2,0.00494258]
[1766979901971,0.16461,3040.6,3039.3,5.223]
[1766979902283,0.00292761,3040.8,3039.3,9.013]
[1766979902983,0.16454,3041.8,3039.4,7.69963888]
[1766979903177,0.01,3042.0,3039.4,7.69963888]
[1766979903178,0.16456,3041.5,3039.5,5.222]
[1766979903477,0.16456,3041.5,3039.2,0.00494258]
[1766979903678,0.16456,3041.5,3039.6,4.18308196]
[1766979903880,0.16456,3041.5,3039.7,5.222]
[1766979904080,0.16699611,3041.5,3039.7,9.40508196]
[1766979904380,0.16699611,3041.5,3039.7,5.22494614]
[1766979904976,0.00243611,3041.5,3039.8,4.25844709]
[1766979905179,0.01,3042.0,3039.9,0.16465]
[1766979905477,0.01,3042.0,3039.7,0.00294614]
[1766979905881,0.01,3042.0,3039.8,9.50156447]
[1766979906086,0.01,3042.0,3039.8,13.24525516]
[1766979906278,0.16449,3042.8,3040.3,0.16462]
[1766979906576,0.16449,3042.8,3041.2,0.0049342]
[1766979906782,0.23178895,3043.7,3041.2,0.0049342]
[1766979906783,0.1645,3042.6,3041.2,0.0049342]
[1766979907271,0.1645,3042.6,3041.2,0.0909342]
[1766979907476,0.1645,3042.6,3041.3,1.374]
[1766979907677,0.1645,3042.6,3041.2,0.0049342]
[1766979907979,0.1645,3042.6,3041.2,1.7629342]
[1766979908777,0.1645,3042.6,3041.2,0.0049342]
[1766979909883,0.16451,3042.5,3041.2,0.0049342]
[1766979910077,2.69482769,3043.7,3041.2,0.0049342]
[1766979910283,0.23209685,3043.7,3041.2,0.0049342]
[1766979910589,0.16449,3042.9,3041.2,0.0049342]
[1766979911084,0.16449,3042.9,3041.2,0.0109342]
[1766979911589,0.16449,3042.8,3041.2,5.2219342]
[1766979911783,0.16445,3043.6,3041.3,4.1979844]
[1766979911991,0.16441,3044.3,3042.1,0.0049342]
[1766979912288,40.8,3044.2,3042.1,0.00351598]
[1766979912489,2.46273084,3044.1,3040.2,0.16463]
[1766979912678,2.46273084,3044.1,3039.6,2.46273084]
[1766979912876,0.16451,3042.5,3040.3,7.91946674]
[1766979913091,0.16447,3043.2,3040.2,0.16463]
[1766979913282,0.16447,3043.2,3041.4,0.0049342]
[1766979913488,0.00378043,3043.2,3041.5,1.281]
[1766979913784,0.16825043,3043.2,3041.6,5.215]
[1766979913990,0.00378043,3043.2,3041.4,0.00904948]
[1766979914385,0.16451,3042.5,3041.4,0.00904948]
[1766979917387,0.16448,3043.1,3041.4,0.00904948]
[1766979917892,0.16449,3042.8,3041.4,0.00904948]
[1766979918290,0.1645,3042.7,3041.4,0.00904948]
[1766979918990,0.1645,3042.6,3041.4,0.00904948]
[1766979920094,0.16451,3042.5,3041.4,0.00904948]
[1766979921685,0.00378043,3043.2,3041.4,0.00904948]
[1766979921891,0.00378043,3043.2,3041.5,7.66912344]
[1766979922093,0.00378043,3043.2,3041.6,2.026]
[1766979922488,0.00378043,3043.2,3041.7,4.32088053]
[1766979923791,0.00378043,3043.2,3041.6,2.19055]
[1766979923991,0.16442,3044.2,3041.7,4.23022858]
[1766979924192,0.16442,3044.2,3042.6,0.0049342]
[1766979927602,40.8,3044.9,3042.6,0.0049342]
[1766979928000,0.16442,3044.1,3042.6,0.0049342]
[1766979930301,0.16443,3044.0,3042.6,0.0049342]
[1766979930995,40.8,3044.9,3042.6,0.0049342]
[1766979930996,0.16439,3044.7,3042.6,0.0049342]
[1766979931201,0.16439,3044.6,3042.6,0.0049342]
[1766979931402,0.1644,3044.5,3043.3,0.0049342]
[1766979931701,0.16443,3044.0,3041.8,1.968]
[1766979932106,0.16443,3044.0,3041.9,8.00551342]
[1766979932497,0.16443,3044.0,3041.9,9.55281974]
[1766979932712,0.16443,3044.0,3042.6,0.0049342]
[1766979933806,0.0049,3044.2,3042.6,0.0049342]
[1766979934712,0.16442,3044.1,3042.6,0.0049342]
[1766979936111,0.0049,3044.2,3042.6,0.0049342]
[1766979936614,0.0049,3044.2,3042.7,4.2140679]
[1766979937914,0.0049,3044.2,3042.6,5.2029342]
[1766979938614,0.0049,3044.2,3042.7,4.20490574]
[1766979939115,0.0049,3044.2,3042.6,5.2029342]
[1766979939809,0.0049,3044.2,3042.7,4.33539452]
[1766979940016,0.0049,3044.2,3042.7,5.198]
[1766979941404,0.0049,3044.2,3042.6,0.0049342]
[1766979941610,0.16932,3044.2,3042.6,0.0049342]
[1766979941810,0.16932,3044.2,3042.7,4.30265038]
[1766979942012,0.16932,3044.2,3042.6,0.0049342]
[1766979942317,0.16932,3044.2,3042.7,4.19720738]
[1766979942514,0.0049,3044.2,3042.7,4.19720738]
[1766979944317,0.0049,3044.2,3042.6,0.0049342]
[1766979944922,0.0049,3044.2,3042.7,4.28605698]
[1766979946019,0.0049,3044.2,3042.7,6.57864131]
[1766979947020,0.16439,3044.7,3042.7,4.28605698]
[1766979948219,0.16439,3044.7,3042.6,0.0049342]
[1766979948414,0.16439,3044.7,3042.6,0.1694342]
[1766979948825,0.16439,3044.7,3042.7,4.20937396]
[1766979949526,4.631,3045.9,3042.6,0.0049342]
[1766979949527,0.1644,3044.6,3042.6,0.0049342]
[1766979949819,0.1644,3044.6,3042.8,9.46065515]
[1766979950026,0.1644,3044.6,3042.8,5.2]
[1766979950418,0.1644,3044.6,3042.9,4.26065515]
[1766979950626,0.1644,3044.6,3042.8,5.2]
[1766979950823,0.1644,3044.6,3042.9,5.2]
[1766979951220,0.1644,3044.6,3042.7,4.35820018]
[1766979951426,4.631,3045.6,3042.6,0.0049342]
[1766979951427,2.46273084,3045.4,3042.6,0.0049342]
[1766979951625,2.46273084,3044.7,3041.5,2.29258433]
[1766979951829,40.8,3044.3,3041.4,0.00411528]
[1766979952133,5.43562519,3044.2,3041.4,0.00411528]
[1766979952433,2.46273084,3043.9,3040.4,2.29258433]
[1766979952729,0.0049342,3042.5,3040.3,7.49158433]
[1766979952929,0.0049342,3042.5,3040.5,4.29349233]
[1766979953131,0.0049342,3042.5,3040.5,2.29258433]
[1766979953326,0.0049342,3042.5,3040.4,2.29258433]
[1766979953527,0.00866977,3042.5,3040.6,4.17998274]
[1766979953734,0.00866977,3042.5,3041.1,0.0049342]
[1766979954530,0.00866977,3042.5,3041.2,4.22523373]
[1766979955127,0.00866977,3042.5,3041.3,5.199]
[1766979955632,0.00866977,3042.5,3041.4,4.34584532]
[1766979956227,0.00866977,3042.5,3041.2,2.29258433]
[1766979956528,0.00866977,3042.5,3041.1,0.0049342]
[1766979958139,0.00866977,3042.5,3041.1,2.29751853]
[1766979958329,0.00866977,3042.5,3041.1,0.0049342]
[1766979958536,0.00866977,3042.5,3041.2,4.22372795]
[1766979958737,0.00866977,3042.5,3041.2,6.51631228]
[1766979959339,0.3283,3043.8,3041.3,0.16457]
[1766979959540,0.3283,3043.8,3041.5,2.29258433]
[1766979959937,0.16444,3043.7,3041.6,4.28402233]
[1766979960137,0.16445,3043.6,3041.7,5.202]
[1766979960331,0.0049342,3043.0,3041.7,5.202]
[1766979960528,0.0049342,3043.0,3041.3,2.29258433]
[1766979960835,0.16449,3042.9,3041.1,0.0049342]
[1766979961039,0.16449,3042.8,3041.1,0.0049342]
[1766979961430,0.0049342,3043.0,3041.1,0.0049342]
[1766979961628,0.0049342,3043.0,3041.2,7.98105533]
[1766979961832,0.0049342,3043.0,3041.3,2.29258433]
[1766979962130,0.0049342,3043.0,3041.4,4.35078461]
[1766979963232,0.0049342,3043.0,3041.2,2.29258433]
[1766979963435,0.0049342,3043.0,3041.2,5.201]
[1766979964136,0.0049342,3043.0,3041.1,0.0049342]
[1766979964440,0.1645,3042.6,3041.1,0.0049342]
[1766979966139,0.16452,3042.3,3040.4,0.00241736]
[1766979966338,0.16454,3041.9,3040.4,0.00241736]
[1766979966738,2.1669612,3042.0,3039.6,5.2]
[1766979966938,2.1669612,3042.0,3039.1,2.29258433]
[1766979967131,2.1669612,3042.0,3038.7,23.026]
[1766979967132,0.0049342,3040.9,3039.0,7.49158433]
[1766979967334,0.0049342,3040.9,3039.0,5.199]
[1766979967533,0.0049342,3040.9,3039.4,2.1669612]
[1766979967735,0.1645,3042.6,3039.9,2.1669612]
[1766979967943,0.1645,3042.6,3040.0,5.202]
[1766979968139,0.16447,3043.2,3040.1,2.45721433]
[1766979968335,2.1669612,3043.4,3040.1,2.45721433]
[1766979968535,0.16448,3043.1,3040.2,6.63061435]
[1766979968730,0.0049342,3042.0,3041.3,0.0049342]
[1766979970539,0.16446,3043.4,3041.3,0.0049342]
[1766979971448,0.0049342,3042.7,3041.3,0.0049342]
[1766979973150,0.1694342,3042.7,3041.3,0.0049342]
[1766979975738,0.1645,3042.6,3041.3,0.0049342]
[1766979975938,0.16451,3042.5,3040.4,5.2]
[1766979976255,0.16451,3042.5,3039.6,0.16466]
[1766979976256,0.16453,3042.1,3040.1,2.29258433]
[1766979976857,0.16455,3041.7,3039.7,2.29258433]
[1766979977047,0.16455,3041.7,3039.6,5.199]
[1766979977048,0.16455,3041.7,3039.6,7.49158433]
[1766979977554,0.16455,3041.7,3039.8,2.29258433]
[1766979977748,0.16456,3041.6,3039.7,2.29258433]
[1766979977950,0.0049342,3041.0,3040.3,0.0049342]
[1766979978150,0.0049342,3041.0,3039.6,2.29258433]
[1766979978342,0.0049342,3041.0,3039.4,0.00406112]
[1766979978846,0.0049342,3041.0,3039.5,2.29258433]
[1766979979151,0.0049342,3041.0,3039.9,0.0049342]
[1766979979545,0.3286,3040.9,3039.9,0.0049342]
[1766979981555,0.3286,3040.9,3039.4,0.00406112]
[1766979982652,0.3286,3040.9,3039.8,0.0049342]
[1766979983558,0.16455,3041.7,3039.9,6.48676279]
[1766979984053,0.16455,3041.7,3040.0,2.29258433]
[1766979984453,0.16455,3041.7,3040.1,4.19417846]
[1766979984654,0.0049342,3041.2,3040.1,4.19417846]
[1766979984855,0.1645,3042.6,3040.4,2.29258433]
[1766979985156,2.1669612,3043.4,3040.6,2.29258433]
[1766979985357,40.8,3043.3,3040.7,6.08258433]
[1766979985561,41.13355658,3043.3,3040.8,2.29258433]
[1766979986057,0.0049342,3042.4,3041.7,0.0049342]
[1766979986258,0.0049342,3042.4,3041.7,0.00863622]
[1766979989158,0.0049342,3042.4,3040.9,6.08258433]
[1766979989358,0.0049342,3042.4,3041.0,3.79]
[1766979989561,0.07052,3043.3,3041.3,0.16457]
[1766979989862,0.07052,3043.3,3041.6,2.29258433]
[1766979990155,0.07052,3043.3,3041.6,2.29525688]
[1766979990156,0.07358564,3043.3,3041.6,2.29525688]
[1766979990761,0.0049342,3042.8,3042.1,0.0049342]
[1766979991162,1e-08,3042.8,3042.1,0.0049342]
[1766979993862,0.07358564,3043.3,3042.1,0.0049342]
[1766979994166,1.126,3044.8,3042.2,2.29258433]
[1766979994360,40.8,3044.7,3042.2,2.29258433]
[1766979994759,0.16442,3044.2,3042.1,2.29751853]
[1766979994961,0.0049342,3043.5,3042.1,2.29751853]
[1766979995964,0.0049342,3043.5,3042.2,4.22078391]
[1766979997567,0.0049342,3043.5,3042.1,2.29751853]
[1766979998863,0.0049342,3043.5,3042.1,0.0049342]
[1766979999767,0.16446,3043.4,3042.1,0.0049342]
[1766979999970,0.16447,3043.2,3041.6,0.00267255]
[1766980000368,0.16447,3043.1,3041.6,0.00267255]
[1766980000562,0.1645,3042.7,3041.6,0.00267255]
[1766980000766,0.1645,3042.7,3040.7,2.87375535]
[1766980000767,0.1645,3042.7,3040.8,2.29258433]
[1766980000967,0.0049342,3042.1,3041.4,3.42e-05]
[1766980001266,0.0049342,3042.1,3040.5,2.29258433]
[1766980001471,0.0049342,3042.1,3040.4,2.29258433]
[1766980001771,0.0080582,3042.1,3040.4,0.00410687]
[1766980002268,0.0080582,3042.1,3040.9,0.0049342]
[1766980004260,0.1725882,3042.1,3040.9,0.0049342]
[1766980005362,0.0080582,3042.1,3040.9,0.0049342]
[1766980006472,0.0080582,3042.1,3040.9,2.29751853]
[1766980006665,0.0080582,3042.1,3041.0,3.79]
[1766980007567,0.0080582,3042.1,3040.9,2.29751853]
[1766980007765,0.16454,3042.0,3040.9,0.0049342]
[1766980007966,0.0080582,3042.1,3040.9,0.0049342]
[1766980008472,10.375,3043.6,3041.2,2.29258433]
[1766980008668,0.16448,3043.0,3041.3,2.29258433]
[1766980008866,2.1669612,3043.9,3041.1,5.186]
[1766980008867,6.8139612,3043.9,3041.1,2.29258433]
[1766980009066,40.8,3043.8,3040.8,2.29258433]
[1766980009273,0.1645,3042.7,3040.8,7.47858433]
[1766980009467,0.1645,3042.7,3040.8,11.83146988]
[1766980009772,0.1694642,3042.1,3040.5,2.29258433]
[1766980010376,0.1694642,3042.1,3040.6,2.29258433]
[1766980010572,0.0049342,3042.1,3040.7,2.29258433]
[1766980010772,0.0049342,3042.1,3041.1,0.0049342]
[1766980011366,0.0049342,3042.1,3041.1,2.29751853]
[1766980011972,0.0049342,3042.1,3041.1,0.0049342]
[1766980013670,0.0049342,3042.1,3040.9,2.29258433]
[1766980013871,0.0049342,3042.1,3040.8,2.29258433]
[1766980014679,0.0049342,3042.1,3041.1,0.0049342]
[1766980014980,0.1694642,3042.1,3040.8,2.29258433]
[1766980015480,0.1694642,3042.1,3040.7,2.29258433]
[1766980015783,0.1694642,3042.1,3041.1,0.00325533]
[1766980016080,0.1694642,3042.1,3040.7,2.29258433]
[1766980016267,0.0049342,3042.1,3040.8,2.29258433]
[1766980016682,0.0049342,3042.1,3040.9,2.29258433]
[1766980017381,0.0049342,3042.1,3040.8,2.29258433]
[1766980017682,0.0049342,3042.1,3040.9,2.29258433]
[1766980018188,0.0049342,3042.1,3041.1,2.29258433]
[1766980018583,0.0049342,3042.1,3041.2,2.29258433]
[1766980019183,0.0049342,3042.1,3041.3,2.29258433]
[1766980019383,0.0049342,3042.1,3041.4,6.08258433]
[1766980020384,0.0049342,3042.1,3041.5,2.29258433]
[1766980020584,0.3286,3042.6,3041.6,3.79]
[1766980020781,0.16446,3043.3,3042.1,2.29258433]
[1766980021088,0.16448,3043.0,3041.8,2.29258433]
[1766980021382,0.16448,3043.0,3041.6,2.29258433]
[1766980021579,40.8,3044.0,3041.6,2.29258433]
[1766980021580,0.0049342,3042.6,3041.6,2.29258433]
[1766980021980,0.16451,3042.5,3041.3,2.29258433]
[1766980022185,0.16451,3042.4,3041.3,2.29258433]
[1766980022490,0.0049342,3042.6,3040.8,2.29258433]
[1766980022683,0.0049342,3042.6,3040.9,2.29258433]